[Event "1st Turkish League 2017"]
[Site "Konya"]
[Date "2017.07.20"]
[Round "5"]
[White "Yilmaz, Ezgi"]
[Black "Temel, Burcu Melis"]
[Result "1/2-1/2"]
[ECO "B45"]
[WhiteElo "1836"]
[BlackElo "1846"]
[Annotator "NA"]
[PlyCount "148"]
[EventType "team-tourn"]
[EventCountry "TUR"]
[SourceTitle "playchess.com"]
[Source "ChessBase"]
[SourceQuality "1"]
[TimeControl "5400+30"]

1. e4 {[%emt 0:00:30]} c5 {[%emt 0:01:00]} 2. Nf3 {[%emt 0:00:30]} Nc6 {[%emt 0:00:30]} 3. d4 {[%emt 0:00:30]} cxd4 {[%emt 0:00:30]} 4. Nxd4 {[%emt 0:00:30]} Nf6 {[%emt 0:00:00]} 5. Nc3 {[%emt 0:00:00]} e6 {[%emt 0:00:00]} 6. g3 {[%emt 0:06:00]} Bb4 {[%emt 0:00:30]} 7. Bg2 {[%emt 0:01:30]} Qa5 {[%emt 0:02:30] B45: Sicilian Four Knights} (7... O-O 8. O-O d6 9. h3 a6 10. Nde2 Bc5 11. g4 Qc7 12. a4 b6 13. g5 Nd7 14. Nf4 Nde5 15. Nd3 Bb7 16. Nxc5 dxc5 {½-½ (23) Baklan,V (2656)-Krasenkow,M (2631) Koge 2014}) 8. Nde2 {[%emt 0:03:30]} d5 {[%emt 0:06:30]} 9. O-O {[%emt 0:03:30]} O-O {[%emt 0:02:30]} 10. exd5 {[%emt 0:06:30]} exd5 {[%emt 0:02:30]} 11. Bg5 $146 {[%emt 0:05:30]} ({Predecessor:} 11. Bd2 Qd8 12. Bg5 Be6 13. Nb5 Bg4 14. c3 Re8 15. Re1 {0-1 (24) Eggleston,T (2166)-Rudd,J (2268) Douglas 2005}) 11... Ne4 {[%emt 0:01:30]} 12. Nxe4 {[%emt 0:10:30]} dxe4 {[%emt 0:00:00]} 13. Be3 {[%emt 0:07:30]} Bg4 {[%emt 0:04:00]} 14. c3 {[%emt 0:14:30]} Be7 {[%emt 0:01:30]} 15. Bxe4 {[%emt 0:03:30]} Ne5 {[%emt 0:07:30]} 16. f3 {[%emt 0:03:30]} Bh3 {[%emt 0:01:30]} 17. Re1 {[%emt 0:06:30]} Rad8 {[%emt 0:18:30]} 18. Qc2 {[%emt 0:03:30]} Kh8 {[%emt 0:01:30]} 19. Nf4 {[%emt 0:02:29]} Bc8 {[%emt 0:03:30]} 20. Qf2 $16 {[%emt 0:05:02]} f5 {[%emt 0:08:30]} 21. Bc2 {[%emt 0:04:21]} b6 {[%emt 0:08:30]} 22. b4 {[%emt 0:01:21]} Qa6 {[%emt 0:01:30]} 23. a4 {[%emt 0:03:13]} Qb7 {[%emt 0:01:30]} 24. Kg2 {[%emt 0:01:08]} Bf6 {[%emt 0:08:59]} 25. h3 {[%emt 0:01:01]} Nc6 {[%emt 0:04:07]} 26. Ne2 {[%emt 0:00:33]} Qc7 {[%emt 0:03:05]} 27. Rad1 {[%emt 0:02:54]} Nxb4 {[%emt 0:04:22]} 28. cxb4 {[%emt 0:02:52]} Qxc2 {[%emt 0:00:04]} 29. Nd4 {[%emt 0:00:50]} Qxa4 {[%emt 0:01:09]} 30. b5 {[%emt 0:00:30]} Qc4 {[%emt 0:05:38]} 31. Rc1 {[%emt 0:00:34]} Qf7 {[%emt 0:00:26]} 32. Nc6 {[%emt 0:00:18]} Rd5 {[%emt 0:00:07]} 33. Rb1 {[%emt 0:00:43]} Re8 {[%emt 0:01:54]} 34. Qa2 {[%emt 0:00:30]} Be6 {[%emt 0:01:06]} 35. Qxa7 {[%emt 0:00:32]} Rd7 {[%emt 0:00:24]} 36. Qxb6 {[%emt 0:00:35]} Rb7 {[%emt 0:00:30]} 37. Qc5 {[%emt 0:00:01]} Bd7 {[%emt 0:00:29]} 38. Bf2 {[%emt 0:01:03]} h6 {[%emt 0:00:30]} 39. Ne5 {[%emt 0:00:33]} Bxe5 {[%emt 0:00:30]} 40. Rxe5 {[%emt 0:00:00]} Rc8 {[%emt 0:00:42]} 41. Qe3 {[%emt 0:00:27]} Qa2 {[%emt 0:00:23]} 42. Qd3 {[%emt 0:00:43]} Rc2 {[%emt 0:00:18]} 43. Rf1 {[%emt 0:00:29]} Qb2 {[%emt 0:00:23]} 44. Qd5 {[%emt 0:01:12]} Bxb5 {[%emt 0:00:36]} 45. Kg1 {[%emt 0:00:24]} Bc6 {[%emt 0:00:35]} 46. Qd8+ {[%emt 0:00:28]} Kh7 {[%emt 0:00:30]} 47. Rxf5 {[%emt 0:00:07]} Rd7 {[%emt 0:00:24]} 48. Qa5 {[%emt 0:00:31]} Rdd2 {[%emt 0:00:29]} 49. Qa7 {[%emt 0:00:24]} Rxf2 {[%emt 0:00:26]} 50. Rxf2 {[%emt 0:00:35]} Rxf2 {[%emt 0:00:02]} 51. Qxf2 {[%emt 0:00:37]} Qb1+ {[%emt 0:00:01]} 52. Kg2 {[%emt 0:00:40]} Qxf5 {[%emt 0:00:30]} 53. g4 {[%emt 0:00:30]} Qd3 {[%emt 0:00:00]} 54. Kg3 {[%emt 0:00:18]} Bb7 {[%emt 0:00:11]} 55. h4 {[%emt 0:00:27]} g5 {[%emt 0:02:17]} 56. hxg5 {[%emt 0:00:29]} hxg5 {[%emt 0:00:00]} 57. Qh2+ {[%emt 0:00:37]} Kg8 {[%emt 0:00:14]} 58. Qf2 {[%emt 0:00:14]} Qd5 {[%emt 0:00:31]} 59. Qe3 {[%emt 0:01:00]} Kf7 {[%emt 0:00:37]} 60. Qc3 {[%emt 0:00:24]} Bc6 {[%emt 0:00:30]} 61. Qe3 {[%emt 0:00:05]} Kf8 {[%emt 0:01:30]} 62. Qa3+ {[%emt 0:00:30]} Kg8 {[%emt 0:00:00]} 63. Qe3 {[%emt 0:00:27]} Kf7 {[%emt 0:00:38]} 64. Qa7+ {[%emt 0:00:29]} Bb7 {[%emt 0:00:30]} 65. Qe3 {[%emt 0:00:22]} Bc6 {[%emt 0:00:47]} 66. Qa7+ {[%emt 0:00:06]} Bb7 {[%emt 0:00:30]} 67. Qe3 {[%emt 0:00:01]} Kg8 {[%emt 0:00:35]} 68. Qe8+ {[%emt 0:01:12]} Kg7 {[%emt 0:00:00]} 69. Qe7+ {[%emt 0:00:27]} Kg6 {[%emt 0:00:13]} 70. Qe8+ {[%emt 0:00:41]} Qf7 {[%emt 0:00:01]} 71. Qxf7+ {[%emt 0:00:26]} Kxf7 {[%emt 0:00:30]} 72. f4 {[%emt 0:00:00]} gxf4+ {[%emt 0:00:00]} 73. Kxf4 {[%emt 0:00:00]} Kg6 {[%emt 0:00:17]} 74. g5 {[%emt 0:00:00]} Bc8 {[%emt 0:00:00]} 1/2-1/2

[Event "1st Turkish League 2017"]
[Site "Konya"]
[Date "2017.07.20"]
[Round "5"]
[White "Erece, Ece Alkim"]
[Black "Yorgun, Yaren Naz"]
[Result "1-0"]
[ECO "B38"]
[WhiteElo "1829"]
[BlackElo "1733"]
[Annotator "NA"]
[PlyCount "99"]
[EventType "team-tourn"]
[EventCountry "TUR"]
[SourceTitle "playchess.com"]
[Source "ChessBase"]
[SourceQuality "1"]
[TimeControl "5400+30"]

1. e4 {[%emt 0:00:30]} c5 {[%emt 0:01:00]} 2. Nf3 {[%emt 0:00:30]} g6 {[%emt 0:00:00]} 3. d4 {[%emt 0:00:00]} cxd4 {[%emt 0:00:00]} 4. Nxd4 {[%emt 0:00:00]} Bg7 {[%emt 0:00:30]} 5. c4 {[%emt 0:00:30]} Nc6 {[%emt 0:00:00]} 6. Be3 {[%emt 0:00:00]} Nf6 {[%emt 0:00:00]} 7. Nc3 {[%emt 0:00:00]} O-O {[%emt 0:01:30]} 8. Be2 {[%emt 0:00:00]} d6 {[%emt 0:00:00]} 9. O-O {[%emt 0:00:00]} Bd7 {[%emt 0:01:00]} 10. Qd2 {[%emt 0:00:30]} Nxd4 {[%emt 0:01:30]} 11. Bxd4 {[%emt 0:00:30]} Bc6 {[%emt 0:00:30]} 12. Bd3 {[%emt 0:00:30]} Nd7 {[%emt 0:02:30] B38: Sicilian: Maroczy Bind with 5...Bg7 and 7...0-0} (12... a5 13. Rae1 a4 14. Nd5 e6 15. Nb4 Bd7 16. Rd1 Qe7 17. Rfe1 Rfc8 18. Bf1 e5 19. Bb6 Be6 20. b3 axb3 21. axb3 {½-½ (36) Wojtaszek,R (2727)-Mamedov,R (2650) Huaian 2016}) 13. Bxg7 {[%emt 0:00:30]} Kxg7 {[%emt 0:00:00]} 14. b4 {[%emt 0:00:30]} b6 {[%emt 0:05:00]} 15. Rae1 {[%emt 0:04:30]} Rc8 $146 {[%emt 0:07:30]} ({Predecessor:} 15... a5 16. a3 axb4 17. axb4 Kg8 18. Re3 Qc7 19. Rh3 b5 20. Qh6 {½-½ (41) Seres,L (2424)-Szabo,Z (2449) Balatonlelle 2005}) 16. Re3 {[%emt 0:02:30]} Rh8 {[%emt 0:08:30]} 17. Rh3 {[%emt 0:03:30]} h6 {[%emt 0:00:30]} 18. f4 {[%emt 0:06:30]} Nf6 {[%emt 0:05:30]} 19. Qe2 {[%emt 0:11:30]} (19. Re3 $16) 19... Bd7 $16 {[%emt 0:05:30]} 20. Rg3 {[%emt 0:00:30]} Bg4 {[%emt 0:13:30]} 21. Rxg4 {[%emt 0:04:30]} Nxg4 {[%emt 0:00:30]} 22. Qxg4 {[%emt 0:00:30]} b5 {[%emt 0:00:30]} 23. f5 {[%emt 0:32:30]} bxc4 {[%emt 0:08:30]} 24. fxg6 {[%emt 0:01:30]} fxg6 {[%emt 0:01:30]} 25. Qe6 {[%emt 0:02:30]} Rf8 {[%emt 0:00:30]} 26. Rxf8 {[%emt 0:00:30]} Qxf8 {[%emt 0:00:00]} 27. Bxc4 {[%emt 0:01:30]} a6 {[%emt 0:08:00]} 28. Ne2 {[%emt 0:02:30]} Rb8 {[%emt 0:06:30]} 29. a3 {[%emt 0:00:30]} Qf6 {[%emt 0:02:30]} 30. Qxf6+ {[%emt 0:01:30]} Kxf6 {[%emt 0:00:30]} 31. Kf2 {[%emt 0:00:30]} Ke5 {[%emt 0:01:30]} 32. Ke3 {[%emt 0:01:30]} Rb6 {[%emt 0:01:30]} 33. Nf4 {[%emt 0:01:30]} Rc6 {[%emt 0:00:30]} 34. Nd3+ {[%emt 0:00:30]} Kf6 {[%emt 0:00:30]} 35. Kd4 {[%emt 0:00:00]} e6 {[%emt 0:00:33]} 36. a4 {[%emt 0:01:00]} g5 {[%emt 0:00:54]} 37. b5 {[%emt 0:01:30]} axb5 {[%emt 0:00:20]} 38. axb5 {[%emt 0:01:30]} Rb6 {[%emt 0:00:45]} 39. Nb2 {[%emt 0:00:30]} d5 {[%emt 0:00:55]} 40. exd5 {[%emt 0:00:30]} exd5 {[%emt 0:00:30]} 41. Kxd5 {[%emt 0:00:30]} Kf5 {[%emt 0:00:00]} 42. Na4 {[%emt 0:00:30]} Rb8 {[%emt 0:03:00]} 43. b6 {[%emt 0:00:30]} Kg4 {[%emt 0:01:24]} 44. Kc6 {[%emt 0:00:30]} h5 {[%emt 0:00:30]} 45. Kc7 {[%emt 0:00:36]} Rxb6 {[%emt 0:00:30]} 46. Nxb6 {[%emt 0:00:30]} h4 {[%emt 0:00:00]} 47. Kd6 {[%emt 0:00:24]} Kf4 {[%emt 0:00:23]} 48. Be6 {[%emt 0:01:19]} g4 {[%emt 0:00:30]} 49. Nd5+ {[%emt 0:00:00]} Kg5 {[%emt 0:00:47]} 50. Ke5 {[%emt 0:00:11]} 1-0

[Event "1st Turkish League 2017"]
[Site "Konya"]
[Date "2017.07.20"]
[Round "5"]
[White "Ozturk, Yavuz"]
[Black "Salepci, Osman Firat"]
[Result "0-1"]
[ECO "B80"]
[WhiteElo "1699"]
[BlackElo "2093"]
[Annotator "NA"]
[PlyCount "100"]
[EventType "team-tourn"]
[EventCountry "TUR"]
[SourceTitle "playchess.com"]
[Source "ChessBase"]
[SourceQuality "1"]
[TimeControl "5400+30"]

1. e4 {[%emt 0:00:30]} c5 {[%emt 0:01:00]} 2. Nf3 {[%emt 0:00:30]} e6 {[%emt 0:00:00]} 3. d4 {[%emt 0:00:30]} cxd4 {[%emt 0:00:00]} 4. Nxd4 {[%emt 0:00:30]} Nf6 {[%emt 0:00:30]} 5. Bd3 {[%emt 0:02:30]} Nc6 {[%emt 0:01:30]} 6. Be3 {[%emt 0:04:30]} d6 {[%emt 0:04:30]} 7. Nc3 {[%emt 0:14:30]} Be7 {[%emt 0:01:30]} 8. O-O {[%emt 0:02:30]} Bd7 {[%emt 0:11:30]} 9. Nb3 {[%emt 0:22:30]} Ne5 {[%emt 0:33:30]} 10. Be2 {[%emt 0:09:30]} Bc6 {[%emt 0:02:30]} 11. f4 {[%emt 0:05:30]} Ned7 {[%emt 0:00:30]} 12. Bf3 {[%emt 0:01:30]} e5 {[%emt 0:11:30]} 13. f5 {[%emt 0:04:30]} Nb6 {[%emt 0:04:30]} 14. Qe2 $11 {[%emt 0:07:30]} Qc7 {[%emt 0:04:30]} 15. Rfd1 {[%emt 0:03:11]} O-O {[%emt 0:07:33]} 16. Rac1 {[%emt 0:04:38]} Rfd8 {[%emt 0:00:20]} 17. Na5 {[%emt 0:04:01]} d5 {[%emt 0:01:52]} 18. exd5 {[%emt 0:01:47]} Nbxd5 {[%emt 0:02:59]} 19. Nxc6 {[%emt 0:04:00]} bxc6 {[%emt 0:00:02]} 20. Ne4 {[%emt 0:01:09]} Nxe3 {[%emt 0:02:39]} 21. Qxe3 {[%emt 0:00:11]} Nd5 {[%emt 0:00:37]} 22. Qf2 {[%emt 0:01:20]} Rab8 {[%emt 0:00:20]} 23. c4 {[%emt 0:00:36]} Nb4 {[%emt 0:00:21]} 24. Rxd8+ {[%emt 0:00:46]} Rxd8 {[%emt 0:00:16]} 25. Rd1 {[%emt 0:01:32]} Nd3 {[%emt 0:04:31]} 26. Qe2 {[%emt 0:01:27]} Qb6+ {[%emt 0:00:25]} 27. c5 {[%emt 0:00:04]} Nxc5 {[%emt 0:01:34]} 28. Rxd8+ {[%emt 0:00:27]} Bxd8 {[%emt 0:00:04]} 29. Nxc5 {[%emt 0:00:31]} Qxc5+ {[%emt 0:00:02]} 30. Kf1 {[%emt 0:00:41]} Bb6 {[%emt 0:00:40]} 31. Ke1 {[%emt 0:01:42]} Qc1+ {[%emt 0:00:30]} 32. Qd1 {[%emt 0:00:00]} Qxb2 {[%emt 0:00:11]} 33. Qb3 {[%emt 0:00:22]} Qf2+ {[%emt 0:02:00]} 34. Kd1 {[%emt 0:00:04]} Qd4+ {[%emt 0:00:22]} 35. Kc2 {[%emt 0:01:39]} e4 {[%emt 0:00:30]} 36. Bh5 {[%emt 0:00:11]} g6 {[%emt 0:00:19]} 37. fxg6 {[%emt 0:00:30]} hxg6 {[%emt 0:00:00]} 38. Be2 {[%emt 0:00:28]} Qf2 {[%emt 0:00:34]} 39. Qc4 {[%emt 0:00:30]} Qxg2 {[%emt 0:00:03]} 40. h4 {[%emt 0:00:36]} e3 {[%emt 0:02:25]} 41. h5 {[%emt 0:00:30]} gxh5 {[%emt 0:00:00]} 42. Kb3 {[%emt 0:00:40]} Qd5 {[%emt 0:00:02]} 43. Qxd5 {[%emt 0:00:13]} cxd5 {[%emt 0:00:03]} 44. Bxh5 {[%emt 0:00:12]} Kg7 {[%emt 0:01:25]} 45. Bf3 {[%emt 0:00:30]} d4 {[%emt 0:00:01]} 46. Kc4 {[%emt 0:00:01]} Kf6 {[%emt 0:00:30]} 47. a4 {[%emt 0:00:26]} Ke5 {[%emt 0:00:05]} 48. Kd3 {[%emt 0:00:31]} f5 {[%emt 0:00:39]} 49. Bh1 {[%emt 0:01:22]} Kf4 {[%emt 0:00:30]} 50. Ke2 {[%emt 0:00:03]} Kg3 {[%emt 0:00:02]} 0-1

[Event "1st Turkish League 2017"]
[Site "Konya"]
[Date "2017.07.20"]
[Round "5"]
[White "Saim, Sida"]
[Black "Ozbek, Busra"]
[Result "0-1"]
[ECO "E94"]
[WhiteElo "1634"]
[BlackElo "1796"]
[Annotator "NA"]
[PlyCount "98"]
[EventType "team-tourn"]
[EventCountry "TUR"]
[SourceTitle "playchess.com"]
[Source "ChessBase"]
[SourceQuality "1"]
[TimeControl "5400+30"]

1. d4 {[%emt 0:00:30]} g6 {[%emt 0:01:00]} 2. c4 {[%emt 0:00:30]} Bg7 {[%emt 0:00:00]} 3. Nc3 {[%emt 0:00:00]} d6 {[%emt 0:00:00]} 4. Nf3 {[%emt 0:00:00]} Nf6 {[%emt 0:10:30]} 5. e4 {[%emt 0:00:30]} O-O {[%emt 0:00:30]} 6. Be2 {[%emt 0:01:30]} Nbd7 {[%emt 0:03:30]} 7. O-O {[%emt 0:02:30]} e5 {[%emt 0:00:30]} 8. dxe5 {[%emt 0:04:30]} dxe5 {[%emt 0:05:30]} 9. Be3 {[%emt 0:00:30]} c6 {[%emt 0:03:30]} 10. h3 {[%emt 0:02:30]} Qc7 {[%emt 0:00:30]} 11. Qd2 {[%emt 0:00:30]} b6 {[%emt 0:08:30]} 12. Rad1 {[%emt 0:02:30]} Bb7 {[%emt 0:02:30]} 13. Qd6 {[%emt 0:03:30]} Qc8 {[%emt 0:09:30]} 14. Bg5 {[%emt 0:09:30]} Re8 {[%emt 0:04:30]} 15. Nh2 {[%emt 0:02:30]} h5 {[%emt 0:10:30]} 16. f4 {[%emt 0:06:30]} Re6 {[%emt 0:04:30]} 17. Qd2 {[%emt 0:02:30]} exf4 {[%emt 0:02:30]} 18. Qxf4 {[%emt 0:02:30]} Qe8 {[%emt 0:01:30]} 19. Rd6 {[%emt 0:05:30]} Rxd6 {[%emt 0:03:30]} 20. Qxd6 {[%emt 0:00:30]} Nh7 {[%emt 0:02:30]} 21. Be7 {[%emt 0:05:30]} Be5 {[%emt 0:00:30]} 22. Qa3 {[%emt 0:00:30]} c5 {[%emt 0:01:30]} 23. Bh4 {[%emt 0:01:30]} Bxc3 {[%emt 0:09:56]} 24. Qxc3 {[%emt 0:01:30]} Qxe4 {[%emt 0:00:17]} 25. Bf3 {[%emt 0:01:30]} Qxh4 {[%emt 0:00:06]} 26. Bxb7 {[%emt 0:01:30]} Rb8 {[%emt 0:00:39]} 27. Bc6 {[%emt 0:04:30]} Qe7 {[%emt 0:01:59]} 28. Re1 {[%emt 0:00:30]} Qd6 {[%emt 0:00:07]} 29. Bf3 {[%emt 0:10:30]} Ng5 {[%emt 0:03:54]} 30. Rd1 {[%emt 0:05:30]} Nxf3+ {[%emt 0:00:33]} 31. Qxf3 {[%emt 0:00:30]} Qe6 {[%emt 0:00:00]} 32. Qg3 {[%emt 0:05:54]} Re8 {[%emt 0:01:20]} 33. Nf3 {[%emt 0:03:50]} Nf6 {[%emt 0:02:27]} 34. Qf4 {[%emt 0:04:10]} Ne4 {[%emt 0:04:02]} 35. b3 {[%emt 0:00:50]} Nc3 {[%emt 0:00:29]} 36. Qd2 {[%emt 0:05:44]} Nxd1 {[%emt 0:00:58]} 37. Qxd1 {[%emt 0:00:30]} Qe3+ {[%emt 0:00:17]} 38. Kh2 {[%emt 0:01:26]} Re7 {[%emt 0:01:37]} 39. Qd6 {[%emt 0:00:48]} Kg7 {[%emt 0:00:50]} 40. a3 {[%emt 0:02:22]} Re6 {[%emt 0:01:22]} 41. Qd7 {[%emt 0:00:28]} Qf2 {[%emt 0:00:44]} 42. Qc7 {[%emt 0:01:22]} h4 {[%emt 0:00:50]} 43. Kh1 {[%emt 0:00:50]} Re2 {[%emt 0:00:23]} 44. Qh2 {[%emt 0:00:24]} Qf1+ {[%emt 0:01:07]} 45. Ng1 {[%emt 0:00:37]} Re1 {[%emt 0:00:00]} 46. b4 {[%emt 0:00:19]} a6 {[%emt 0:00:49]} 47. a4 {[%emt 0:00:41]} cxb4 {[%emt 0:00:00]} 48. a5 {[%emt 0:00:32]} b3 {[%emt 0:00:49]} 49. axb6 {[%emt 0:00:30]} b2 {[%emt 0:00:00]} 0-1

[Event "1st Turkish League 2017"]
[Site "Konya"]
[Date "2017.07.20"]
[Round "5"]
[White "Elma, Muge"]
[Black "Sahin, Hayrun Nisa"]
[Result "1-0"]
[ECO "B13"]
[WhiteElo "1513"]
[BlackElo "1576"]
[Annotator "NA"]
[PlyCount "81"]
[EventType "team-tourn"]
[EventCountry "TUR"]
[SourceTitle "playchess.com"]
[Source "ChessBase"]
[SourceQuality "1"]
[TimeControl "5400+30"]

1. Nf3 c5 2. e3 d5 3. d4 cxd4 4. exd4 g6 5. c3 Nf6 6. Bd3 Bg7 7. O-O O-O 8. h3 Nc6 9. Re1 Re8 10. Bf4 Bd7 11. Nbd2 Rc8 12. Bh2 a6 13. Nb3 e6 14. Nc5 Qb6 15. Qb3 Qxb3 16. axb3 Nd8 17. Ne5 Bc6 18. b4 Ne4 19. Bxe4 dxe4 20. Nxc6 Rxc6 21. Rxe4 f5 22. Re2 Kf7 23. Rae1 Rc8 24. d5 e5 25. Bxe5 Bxe5 26. Rxe5 Rxe5 27. Rxe5 Kf6 28. Re3 a5 29. Nd7+ Kg5 30. Nb6 Rc7 31. bxa5 Nf7 32. Rg3+ Kh6 33. Re3 Kg5 34. f3 f4 35. Re4 Rc5 36. Re7 Nd6 37. h4+ Kh6 38. Rd7 Nf5 39. d6 Rxa5 40. Nc4 Ng3 41. Nxa5 1-0

[Event "1st Turkish League 2017"]
[Site "Konya"]
[Date "2017.07.20"]
[Round "6"]
[White "Nechaeva, Marina"]
[Black "Khukhashvili, Sopiko"]
[Result "0-1"]
[ECO "E20"]
[WhiteElo "2408"]
[BlackElo "2339"]
[Annotator "ChessBase"]
[PlyCount "84"]
[EventType "team-tourn"]
[EventCountry "TUR"]
[SourceTitle "playchess.com"]
[Source "ChessBase"]
[SourceQuality "1"]
[TimeControl "5400+30"]

1. d4 {[%emt 0:00:30]} Nf6 {[%emt 0:01:00]} 2. c4 {[%emt 0:00:30]} e6 {[%emt 0:00:30]} 3. Nc3 {[%emt 0:00:30]} Bb4 {[%emt 0:00:30]} 4. Nf3 {[%emt 0:00:00]} c5 {[%emt 0:01:30]} 5. g3 {[%emt 0:00:00]} O-O {[%emt 0:00:30]} 6. Bg2 {[%emt 0:00:30]} d5 {[%emt 0:00:30]} 7. cxd5 {[%emt 0:00:30]} Nxd5 {[%emt 0:00:30]} 8. Bd2 {[%emt 0:00:30]} cxd4 {[%emt 0:01:30]} 9. Nxd5 {[%emt 0:10:30]} Bxd2+ {[%emt 0:00:00]} 10. Nxd2 {[%emt 0:02:30]} exd5 {[%emt 0:00:00]} 11. Nb3 {[%emt 0:00:00]} Nc6 {[%emt 0:00:30]} 12. O-O {[%emt 0:00:00]} Qf6 {[%emt 0:00:30]} 13. Qd2 {[%emt 0:01:30]} Bg4 {[%emt 0:01:30]} 14. h3 {[%emt 0:12:30]} Bf5 {[%emt 0:02:30]} 15. Rad1 {[%emt 0:00:30]} Be4 {[%emt 0:07:30]} 16. f3 {[%emt 0:03:30]} Bg6 {[%emt 0:00:30]} 17. Nxd4 {[%emt 0:02:30]} Rad8 {[%emt 0:00:00]} 18. Kh2 {[%emt 0:04:30]} Rfe8 {[%emt 0:01:00]} 19. Nxc6 {[%emt 0:01:30]} bxc6 {[%emt 0:00:30]} 20. e3 {[%emt 0:01:30]} h5 {[%emt 0:00:30]} 21. h4 {[%emt 0:01:30]} Rb8 {[%emt 0:05:30]} 22. b3 {[%emt 0:02:30]} a5 {[%emt 0:01:30]} 23. Qxa5 {[%emt 0:09:30]} Rxe3 {[%emt 0:01:30]} 24. Qd2 {[%emt 0:01:30]} Rbe8 {[%emt 0:06:30]} 25. Rf2 {[%emt 0:00:30]} Rd3 {[%emt 0:02:30]} 26. Qc1 {[%emt 0:00:30]} Rc3 {[%emt 0:03:30]} 27. Qa1 {[%emt 0:05:30]} d4 {[%emt 0:02:30]} 28. a4 {[%emt 0:00:30]} d3 {[%emt 0:02:30]} 29. a5 {[%emt 0:01:30]} Rc2 {[%emt 0:01:30]} 30. Qxf6 {[%emt 0:02:30]} gxf6 {[%emt 0:00:00]} 31. Kg1 {[%emt 0:00:30]} Rb8 {[%emt 0:09:00]} 32. f4 {[%emt 0:15:30]} Rxb3 {[%emt 0:02:30]} 33. f5 {[%emt 0:00:30]} Rbb2 {[%emt 0:05:30]} 34. fxg6 {[%emt 0:07:55]} Rxf2 {[%emt 0:00:30]} 35. gxf7+ {[%emt 0:00:02]} Kg7 {[%emt 0:03:30]} 36. Bxc6 {[%emt 0:00:04]} Rfd2 {[%emt 0:00:00]} 37. Rf1 {[%emt 0:10:12]} Ra2 {[%emt 0:03:00]} 38. Be4 {[%emt 0:00:15]} Rxa5 {[%emt 0:14:30]} 39. Rxf6 {[%emt 0:00:06]} Ra1+ {[%emt 0:00:30]} 40. Rf1 {[%emt 0:00:30]} Rxf1+ {[%emt 0:00:30]} 41. Kxf1 {[%emt 0:00:00]} Rd1+ {[%emt 0:00:30]} 42. Kf2 {[%emt 0:00:00]} d2 {[%emt 0:00:30]} 0-1

[Event "1st Turkish League 2017"]
[Site "Konya"]
[Date "2017.07.20"]
[Round "6"]
[White "Dedebas, Emre Emin"]
[Black "Guncan, Berke"]
[Result "1/2-1/2"]
[ECO "E12"]
[WhiteElo "2322"]
[BlackElo "2043"]
[Annotator "ChessBase"]
[PlyCount "55"]
[EventType "team-tourn"]
[EventCountry "TUR"]
[SourceTitle "playchess.com"]
[Source "ChessBase"]
[SourceQuality "1"]
[TimeControl "5400+30"]

1. d4 {[%emt 0:00:30]} Nf6 {[%emt 0:01:00]} 2. Nf3 {[%emt 0:00:30]} e6 {[%emt 0:00:30]} 3. c4 {[%emt 0:00:00]} b6 {[%emt 0:00:00]} 4. a3 {[%emt 0:00:00]} Bb7 {[%emt 0:00:00]} 5. Nc3 {[%emt 0:00:00]} d5 {[%emt 0:00:30]} 6. Bg5 {[%emt 0:00:00]} Be7 {[%emt 0:00:30]} 7. Qa4+ {[%emt 0:00:30]} c6 {[%emt 0:05:30]} 8. Bxf6 {[%emt 0:00:30]} Bxf6 {[%emt 0:00:00]} 9. cxd5 {[%emt 0:00:00]} exd5 {[%emt 0:00:00]} 10. g3 {[%emt 0:00:00]} O-O {[%emt 0:01:30]} 11. Bg2 {[%emt 0:02:30]} Nd7 {[%emt 0:00:30]} 12. O-O {[%emt 0:00:30]} c5 {[%emt 0:00:30]} 13. Rfd1 {[%emt 0:11:30]} a6 {[%emt 0:09:30]} 14. Qc2 {[%emt 0:17:30]} Rc8 {[%emt 0:08:30]} 15. e3 {[%emt 0:13:30]} b5 {[%emt 0:02:30]} 16. Qe2 {[%emt 0:07:30]} c4 {[%emt 0:03:30]} 17. Ne5 {[%emt 0:06:30]} Nxe5 {[%emt 0:02:30]} 18. dxe5 {[%emt 0:00:00]} Bxe5 {[%emt 0:00:00]} 19. Nxd5 {[%emt 0:00:00]} Bxd5 {[%emt 0:00:00]} 20. Bxd5 {[%emt 0:06:30]} Qf6 {[%emt 0:01:30]} 21. Rab1 {[%emt 0:00:30]} Qe7 {[%emt 0:00:30]} 22. Ra1 {[%emt 0:00:30]} Qf6 {[%emt 0:00:30]} 23. Rab1 {[%emt 0:00:00]} Qe7 {[%emt 0:00:00]} 24. Ra1 {[%emt 0:00:00]} Qf6 {[%emt 0:00:00]} 25. Rab1 {[%emt 0:00:00]} Qe7 {[%emt 0:00:00]} 26. Ra1 {[%emt 0:00:00]} Qf6 {[%emt 0:00:00]} 27. Rab1 {[%emt 0:00:00]} Qe7 {[%emt 0:00:00]} 28. Ra1 {[%emt 0:00:00]} 1/2-1/2